Cogmind - Beta 9.3 @@@ ROGUE MODE // 2019.12.24 @ 01:51:06 // Winter2019/RPGLIKE Player: cptwinky Result: Destroyed by as-84816 with Assembled Focal Cannon Performance ------------- Evolutions (3) 1500 Regions Visited (10) 2000 Robots Destroyed (235) 1175 Value Destroyed (8332) 8332 Prototype IDs (37) 740 Alien Tech Used (0) 0 Bonus (3856) 3856 TOTAL SCORE: 17603 Bonus ------- Triggered High Security 500 High Alert Combat Kills 4190 Follower Combat Kills 151 Aligned with FarCom 300 Destroyed Z-Imprinter 1000 Friendly Fire -2285 Cogmind --------- Core Integrity 0/600 Matter 90/300 Energy 45/200 System Corruption 0% Temperature Cool (243) Movement Flying (32) Location -7/Deep Caves Parts ------- > --- POWER (2) -------- Micro Nuclear Core Micro Nuclear Core > --- PROPULSION (2) --- Improved VTOL Module Improved VTOL Module > --- UTILITY (4) ------ Zionite Metafield Generator Advanced Signal Interpreter Long-range Terrain Scanner Kinecellerator > --- WEAPON (6) ------- Zionite Phaser-S XL Autogun Array EMP Blaster > --- INVENTORY (7) ---- Protomatter-59 Zionite Light DM Reactor Large Matter Pod (150) Mobile Refinery Mk. CCLXVII Heart of Steel Peak State ------------ > --- POWER ------------ Micro Nuclear Core Micro Nuclear Core > --- PROPULSION ------- Improved VTOL Module Improved VTOL Module > --- UTILITY ---------- Advanced Signal Interpreter Heart of Steel > --- WEAPON ----------- XL Autogun Array Greatsword > --- INVENTORY -------- Protomatter Large Matter Pod Long-range Terrain Scanner Matter Filter Kinecellerator Component Analysis Suite EMP Blaster [Rating: 89] Favorites ----------- Power Micro Nuclear Core Engine Light Ion Engine Power Core Micro Nuclear Core Propulsion Improved VTOL Module Treads Light Treads Hover Unit Hover Unit Flight Unit Improved VTOL Module Utility Advanced Signal Interpreter Device Long-range Terrain Scanner Processor Advanced Signal Interpreter Weapon XL Autogun Array Energy Gun EM Pulse Gun Ballistic Gun XL Autogun Array Launcher YI-UF0's Doublenader Slashing Weapon Greatsword Build | -11 -10 -10 -10 -9 -8 -7 -7 -7 -7 -7 ------- Run | Scr Mat Min Exi Min Mat Fac Low Low Zio Dee Slots Evolved 10 | 2 . . 2 . 6 . . . . . Power 1 | . . . . . 1 . . . . . Propulsion 1 | . . . . . 1 . . . . . Utility 3 | 1 . . . . 2 . . . . . Weapon 5 | 1 . . 2 . 2 . . . . . Parts Attached 62 | 6 11 2 1 4 13 9 9 . 2 5 Power 9 | 1 1 . . 1 3 3 . . . . Engine 5 | 1 1 . . . 2 1 . . . . Core 4 | . . . . 1 1 2 . . . . Reactor . | . . . . . . . . . . . Propulsion 8 | 1 3 . . . 4 . . . . . Treads 2 | 1 1 . . . . . . . . . Leg . | . . . . . . . . . . . Wheel . | . . . . . . . . . . . Hover 1 | . 1 . . . . . . . . . Flight 5 | . 1 . . . 4 . . . . . Utility 27 | 2 1 . . 1 4 6 9 . 2 2 Device 20 | 1 . . . 1 1 4 9 . 2 2 Storage . | . . . . . . . . . . . Processor 7 | 1 1 . . . 3 2 . . . . Hackware . | . . . . . . . . . . . Protection . | . . . . . . . . . . . Artifact . | . . . . . . . . . . . Weapon 18 | 2 6 2 1 2 2 . . . . 3 Energy Gun 4 | 1 1 . . . . . . . . 2 Energy Cannon . | . . . . . . . . . . . Ballistic Gun 7 | 1 3 1 1 1 . . . . . . Ballistic Cannon . | . . . . . . . . . . . Launcher 6 | . 2 1 . 1 1 . . . . 1 Special Weapon . | . . . . . . . . . . . Impact Weapon . | . . . . . . . . . . . Slashing Weapon 1 | . . . . . 1 . . . . . Piercing Weapon . | . . . . . . . . . . . Special Melee Weapon . | . . . . . . . . . . . Unidentified Prototypes 9 | . . . . 1 2 . 1 . 1 4 Parts Lost . | . . . . . . . . . . . Power . | . . . . . . . . . . . Propulsion . | . . . . . . . . . . . Utility . | . . . . . . . . . . . Weapon . | . . . . . . . . . . . Highest Loss Streak . | . . . . . . . . . . . Average Slot Usage (%) 71 | . 99 100 81 62 70 71 61 71 71 74 Engine 3 | . 16 16 14 8 2 1 . . . . Core 10 | . . . . 3 10 12 14 14 14 14 Flight 13 | . 8 16 14 12 12 14 14 14 14 14 Device 16 | . 16 16 14 23 17 20 11 21 21 21 Processor 8 | . 16 16 14 1 8 7 7 7 7 7 Energy Gun 2 | . 14 . . . . . . . . 3 Ballistic Gun 9 | . 17 21 22 11 8 7 7 7 7 7 Launcher 1 | . . 10 . . 7 . . . . 4 Slashing Weapon 4 | . . . . . . 7 7 7 7 2 Naked Turns . | . . . . . . . . . . . Heaviest Build 47 | 7 12 13 23 24 37 47 42 41 41 45 Greatest Support 47 | 8 25 19 34 34 42 47 47 47 47 47 Greatest Overweight (x) 1 | . 1 . . . . . . . . . Average Overweight (x) . | . . . . . . . . . . . Largest Inventory Capacity 7 | 1 1 1 1 2 4 5 7 7 7 7 Average Capacity 4 | 1 1 1 1 1 3 4 6 7 7 7 Most Carried 7 | . 1 1 1 2 4 5 7 7 7 7 Average Carried 4 | . . 1 . 1 2 4 6 7 6 6 Final Capacity 7 | 1 1 1 1 2 4 5 7 7 7 7 Final Carried 7 | . 1 1 1 2 4 5 7 7 7 7 Class Distribution -------------------- 29% | Scout 23% | Hauler-Scout 22% | Hauler-Sprinter 16% | Mutant 8% | Scavenger-Scout Dominant Class ---------------- Mutant | -10/Materials Mutant | -10/Mines Mutant | -10/Exiles Scout | -9/Mines Scavenger-Scout | -8/Materials Scout | -7/Factory Hauler-Sprinter | -7/Lower Caves Hauler-Scout | -7/Lower Caves Hauler-Scout | -7/Zion Hauler-Scout | -7/Deep Caves Resources | -11 -10 -10 -10 -9 -8 -7 -7 -7 -7 -7 ----------- Run | Scr Mat Min Exi Min Mat Fac Low Low Zio Dee Matter Collected 8197 | 275 470 . 114 187 1788 2205 2545 275 20 318 Remotely . | . . . . . . . . . . . Salvage Created 7904 | 113 1106 . . 281 2238 2815 625 219 . 507 Parts 528 | 7 79 3 . 25 142 178 29 18 . 47 Haulers Intercepted 10 | . 2 . . . 6 2 . . . . Recyclers Shooed . | . . . . . . . . . . . Parts Field Recycled . | . . . . . . . . . . . Retrieved Matter . | . . . . . . . . . . . Parts Self-Destructed 49 | . . . . . . . 30 19 . . Prevented . | . . . . . . . . . . . Kills | -11 -10 -10 -10 -9 -8 -7 -7 -7 -7 -7 ------- Run | Scr Mat Min Exi Min Mat Fac Low Low Zio Dee Combat Hostiles Destroyed 186 | . 24 5 . 10 44 61 12 10 . 20 Guns 161 | . 20 1 . 8 40 57 12 10 . 13 AOE 21 | . 4 4 . 2 4 4 . . . 3 Classes Destroyed 19 | 2 6 1 . . 5 3 1 . . 1 Worker 7 | . . . . . 3 4 . . . . Builder 7 | . 2 . . . 3 2 . . . . Tunneler 3 | 1 1 . . 1 . . . . . . Hauler 10 | . 2 . . . 6 2 . . . . Recycler 5 | 1 2 . . . . 2 . . . . Minesweeper 1 | . . . . . . . 1 . . . Operator 3 | . 1 . . . 1 1 . . . . Watcher 8 | . 2 . . . 4 2 . . . . Swarmer 34 | . 3 . . 4 7 8 2 10 . . Grunt 83 | . 21 1 . 6 23 25 7 . . . Brawler 6 | . . . . . 1 5 . . . . Duelist 3 | . . . . . 2 1 . . . . Protector 1 | . . . . . . 1 . . . . Sentry 23 | . . . . . 10 11 2 . . . Demolisher 2 | . . . . . . 2 . . . . Hunter 8 | . . . . . 1 6 1 . . . Programmer 2 | . . . . . . 2 . . . . Z-Light 10 | . . . . . . . . . . 10 Decomposer 3 | . . . . . . . 3 . . . Assembled 13 | . . 4 . . . . . . . 9 Best Kill Streak 16 | 1 5 4 . 6 16 14 6 4 . 6 Combat Bots Only 13 | . 5 4 . 6 11 13 6 4 . 6 Max Kills in Single Turn 5 | 1 2 2 . 2 5 2 2 1 . 3 Gunslinging . | . . . . . . . . . . . Exploded 4 | . 2 2 . 2 4 2 . . . 2 Melee . | . . . . . . . . . . . Uniques/NPCs Destroyed 2 | . . . . 1 . . . . . 1 YI-UF0 (-9/Mines) Z-Imprinter (-7/Deep Caves) Combat | -11 -10 -10 -10 -9 -8 -7 -7 -7 -7 -7 -------- Run | Scr Mat Min Exi Min Mat Fac Low Low Zio Dee Damage Taken 3590 | . 814 146 . 172 429 516 32 98 . 1383 Core 2944 | . 662 122 . 139 345 422 30 76 . 1148 Absorbed by Shields . | . . . . . . . . . . . Redirected to Core 2190 | . 464 79 . 95 285 323 8 76 . 860 Core Remaining (%) 100 | 100 . . . 100 100 . . . . . Volleys Fired 474 | 5 117 10 . 15 94 141 24 15 . 53 Largest 2 | 2 2 2 . 1 1 1 1 1 . 2 Hottest 120 | 60 70 40 . 60 70 60 60 60 . 120 Shots Fired 597 | 10 215 14 . 15 94 141 24 15 . 69 Gun 566 | 10 209 8 . 15 92 141 24 15 . 52 Cannon . | . . . . . . . . . . . Launcher 31 | . 6 6 . . 2 . . . . 17 Special . | . . . . . . . . . . . Kinetic 431 | 5 100 8 . 15 92 141 24 15 . 31 Thermal 5 | 5 . . . . . . . . . . Explosive 14 | . 6 6 . . 2 . . . . . Electromagnetic 126 | . 109 . . . . . . . . 17 Phasic 21 | . . . . . . . . . . 21 Robot Hit Streak 37 | 6 20 8 . 11 25 37 35 12 . 23 Robot Miss Streak 4 | 1 4 1 . 2 4 4 2 3 . 2 Penetration Max . | . . . . . . . . . . . Secondary Targets 3 | . 3 . . . . . . . . . Max Gunslinging Chain 1 | . 1 . . . . . . . . . Shots Hit Robots 441 | 7 130 8 . 13 85 99 27 13 . 59 Core Hits 386 | 3 58 11 . 14 88 130 26 10 . 46 Critical Hits . | . . . . . . . . . . . Critical Kills . | . . . . . . . . . . . Critical Parts Destroyed . | . . . . . . . . . . . Melee Attacks 10 | . . . . . . . 4 . 6 . Impact . | . . . . . . . . . . . Slashing 10 | . . . . . . . 4 . 6 . Piercing . | . . . . . . . . . . . Sneak Attacks 4 | . . . . . . . 4 . . . Combat Hostiles . | . . . . . . . . . . . Follow-up Attacks . | . . . . . . . . . . . Damage Inflicted 24541 | 74 2221 397 . 902 5677 8435 2212 581 . 4042 Guns 20350 | 74 1704 79 . 737 5449 7109 1564 581 . 3053 Cannons . | . . . . . . . . . . . Explosions 3543 | . 517 318 . 165 228 1326 . . . 989 Melee 648 | . . . . . . . 648 . . . Ramming . | . . . . . . . . . . . Kinetic 18982 | 40 898 79 . 737 5449 7109 1564 581 . 2525 Thermal 1773 | 34 336 . . 165 59 970 . . . 209 Explosive 1024 | . 181 318 . . 169 356 . . . . Electromagnetic 1586 | . 806 . . . . . . . . 780 Impact . | . . . . . . . . . . . Slashing 648 | . . . . . . . 648 . . . Piercing . | . . . . . . . . . . . Phasic 528 | . . . . . . . . . . 528 Highest Corruption 2 | . 2 2 2 2 1 . . . . . Average Corruption 1 | . 1 2 2 2 1 . . . . . Corruption Purged . | . . . . . . . . . . . Effects 18 | . 10 2 2 4 . . . . . . Message Errors 4 | . 1 . 2 1 . . . . . . Heat Flow Errors 4 | . 1 2 . 1 . . . . . . Energy Discharges 3 | . 2 . . 1 . . . . . . Data Loss (minor) 3 | . 3 . . . . . . . . . Targeting Errors 4 | . 3 . . 1 . . . . . . Overload Shots . | . . . . . . . . . . . Overflow Damage 510 | . 20 21 . . 24 146 299 . . . Projectiles . | . . . . . . . . . . . Explosions 211 | . 20 21 . . 24 146 . . . . Melee 299 | . . . . . . . 299 . . . Knockbacks . | . . . . . . . . . . . Impact . | . . . . . . . . . . . Kinetic . | . . . . . . . . . . . Secondary . | . . . . . . . . . . . Self-Inflicted Damage 197 | . 65 14 . . . 118 . . . . Shots 5 | . 2 1 . . . 2 . . . . Rammed . | . . . . . . . . . . . Targets Rammed . | . . . . . . . . . . . Kicked . | . . . . . . . . . . . Crushed . | . . . . . . . . . . . Highest Temperature 269 | . 203 269 . 209 62 92 88 54 . 237 Average Temperature 37 | . 30 109 . 83 13 26 29 21 . 81 Received Heat Transfer 1098 | . 369 42 . 84 171 108 . . . 324 Effects 5 | . . . . 2 . . . . . 3 Interference 5 | . . . . 2 . . . . . 3 Siege Activations . | . . . . . . . . . . . Robots Corrupted 4 | . . . . . . . . . . 4 Combat Hostiles 4 | . . . . . . . . . . 4 Parts Fried 19 | . 2 . . . . . . . . 17 Impact Corruptions . | . . . . . . . . . . . Robots Melted . | . . . . . . . . . . . Combat Hostiles . | . . . . . . . . . . . Parts Melted 1 | . 1 . . . . . . . . . Heat Transferred 1625 | 75 450 . . 250 50 750 . . . 50 Parts Sabotaged . | . . . . . . . . . . . Parts Stolen . | . . . . . . . . . . . Parts Stripped . | . . . . . . . . . . . Power Chain Reactions 4 | . 3 . . . . . . . . 1 Missiles Intercepted . | . . . . . . . . . . . Alert | -11 -10 -10 -10 -9 -8 -7 -7 -7 -7 -7 ------- Run | Scr Mat Min Exi Min Mat Fac Low Low Zio Dee Peak Influence 3046 | 10 612 100 . 431 1639 3046 . . . . Average Influence 865 | 4 303 83 . 220 1041 1390 . . . . Maximum Alert Level 5 | . 2 . . 2 5 5 . . . . Low Security (%) 17 | 100 32 100 . 41 3 . . . . . Level 1 15 | . 37 . . 45 3 . . . . . Level 2 12 | . 30 . . 12 12 2 . . . . Level 3 21 | . . . . . 14 45 . . . . Level 4 24 | . . . . . 65 29 . . . . Level 5 . | . . . . . . 1 . . . . High Security 8 | . . . . . . 21 . . . . Max Security . | . . . . . . . . . . . Squads Dispatched 32 | . 8 . . 2 7 15 . . . . Investigation 16 | . 7 . . 2 3 4 . . . . Extermination 1 | . . . . . . 1 . . . . Reinforcement 3 | . 1 . . . 2 . . . . . Assault 11 | . . . . . 1 10 . . . . Garrison 1 | . . . . . 1 . . . . . Intercept . | . . . . . . . . . . . Construction Impeded 1 | . . . . . 1 . . . . . Haulers Reinforced . | . . . . . . . . . . . Stealth | -11 -10 -10 -10 -9 -8 -7 -7 -7 -7 -7 --------- Run | Scr Mat Min Exi Min Mat Fac Low Low Zio Dee Distress Signals 4 | . 1 . . . 3 . . . . . Communications Jammed . | . . . . . . . . . . . Distress Signals . | . . . . . . . . . . . Times Spotted 237 | . 40 13 . 12 54 78 11 7 . 22 Peak Tracking Total 13 | . 7 11 . 6 6 13 6 3 . 6 Tactical Retreats 9 | . 4 1 . . . 4 . . . . Traps | -11 -10 -10 -10 -9 -8 -7 -7 -7 -7 -7 ------- Run | Scr Mat Min Exi Min Mat Fac Low Low Zio Dee Traps Triggered 7 | . 2 . . . 2 3 . . . . Indirectly . | . . . . . . . . . . . Trap Hack Attempts . | . . . . . . . . . . . Triggered . | . . . . . . . . . . . Disarmed . | . . . . . . . . . . . Reprogrammed . | . . . . . . . . . . . Reused . | . . . . . . . . . . . Traps Extracted . | . . . . . . . . . . . Installed . | . . . . . . . . . . . Triggered 1 | . . . . . . . . 1 . . Machines | -11 -10 -10 -10 -9 -8 -7 -7 -7 -7 -7 ---------- Run | Scr Mat Min Exi Min Mat Fac Low Low Zio Dee Machines Disabled 79 | . 5 1 . 5 9 53 . . 3 3 Max in Single Turn 8 | . 3 1 . 3 3 8 . . 1 1 Garrison Access 2 | . . . . . 1 1 . . . . Machines Sabotaged . | . . . . . . . . . . . Garrisons Compromised 1 | . . . . . . 1 . . . . Overloaded Fab Kills . | . . . . . . . . . . . Fab Network Shutdowns . | . . . . . . . . . . . Hacking | -11 -10 -10 -10 -9 -8 -7 -7 -7 -7 -7 --------- Run | Scr Mat Min Exi Min Mat Fac Low Low Zio Dee Machines Accessed 39 | . 9 1 2 1 11 9 5 1 . . Terminals 23 | . 7 1 . 1 8 5 1 . . . Fabricators 1 | . . . . . . 1 . . . . Repair Stations . | . . . . . . . . . . . Recycling Units 5 | . 2 . . . 2 1 . . . . Scanalyzers . | . . . . . . . . . . . Garrison Access 3 | . . . . . 1 2 . . . . Total Hacks 103 | . 26 3 2 3 29 24 15 1 . . Successful 58 | . 12 2 2 1 13 12 15 1 . . Failed 43 | . 13 1 . 1 16 12 . . . . Catastrophic 5 | . 1 . . . 3 1 . . . . Database Lockouts 2 | . 1 . . 1 . . . . . . Manual 61 | . 18 3 1 3 22 13 1 . . . Terminals 71 | . 21 3 . 3 22 15 7 . . . Fabricators 3 | . . . . . . 3 . . . . Repair Stations . | . . . . . . . . . . . Recycling Units 13 | . 5 . . . 5 3 . . . . Scanalyzers . | . . . . . . . . . . . Garrison Access 5 | . . . . . 2 3 . . . . Terminal Hacks 39 | . 7 . 2 1 9 4 15 1 . . Record 13 | . . . 1 . . . 11 1 . . Robot Schematic 1 | . . . . . . 1 . . . . Robot Analysis 4 | . 1 . . 1 1 . 1 . . . Prototype ID Bank 3 | . 2 . . . 1 . . . . . Open Door 3 | . . . . . . . 3 . . . Branch Access Points 2 | . 1 . . . . 1 . . . . Unreport Threat 9 | . 3 . . . 4 2 . . . . Hauler Manifests 2 | . . . . . 2 . . . . . Zone Layout 1 | . . . . . 1 . . . . . EX-Prototype ID Bank 1 | . . . 1 . . . . . . . Fabricator Hacks 1 | . . . . . . 1 . . . . Load Schematic 1 | . . . . . . 1 . . . . Repair Station Hacks . | . . . . . . . . . . . Recycling Unit Hacks 5 | . 2 . . . 2 1 . . . . Retrieve Components 5 | . 2 . . . 2 1 . . . . Scanalyzer . | . . . . . . . . . . . Garrison Access Hacks . | . . . . . . . . . . . Unauthorized Hacks 37 | . 9 5 . . 9 14 . . . . Terminals 7 | . 1 2 . . 1 3 . . . . Track 1 | . . 1 . . . . . . . . Assimilate 2 | . . . . . . 2 . . . . Botnet 1 | . . . . . . 1 . . . . Disrupt 3 | . 1 1 . . 1 . . . . . Fabricators . | . . . . . . . . . . . Repair Stations . | . . . . . . . . . . . Recycling Units 4 | . 2 . . . 1 1 . . . . Tunnel 4 | . 2 . . . 1 1 . . . . Scanalyzers . | . . . . . . . . . . . Garrison Access 2 | . . . . . . 2 . . . . Reprogram 2 | . . . . . . 2 . . . . Data Cores Recovered 1 | . . . . . 1 . . . . . Used . | . . . . . . . . . . . Hacking Detections 24 | . 6 1 . 1 7 8 1 . . . Full Trace Events 11 | . 3 . . 1 3 3 1 . . . Feedback Events 2 | . 2 . . . . . . . . . Corruption 2 | . 2 . . . . . . . . . Feedback Blocked . | . . . . . . . . . . . Robot Schematics Acquired 1 | . . . . . . 1 . . . . Robots Built . | . . . . . . . . . . . Matter . | . . . . . . . . . . . Time . | . . . . . . . . . . . Total Robot Build Rating . | . . . . . . . . . . . Part Schematics Acquired . | . . . . . . . . . . . Parts Built . | . . . . . . . . . . . Matter . | . . . . . . . . . . . Time . | . . . . . . . . . . . Total Part Build Rating . | . . . . . . . . . . . Parts Repaired . | . . . . . . . . . . . Time . | . . . . . . . . . . . Parts Recycled . | . . . . . . . . . . . Recycled Matter . | . . . . . . . . . . . Retrieved Matter . | . . . . . . . . . . . Retrieved Components 24 | . 20 . . . 2 2 . . . . Parts Scanalyzed . | . . . . . . . . . . . Part Schematics Acquired . | . . . . . . . . . . . Parts Damaged . | . . . . . . . . . . . Bothacking | -11 -10 -10 -10 -9 -8 -7 -7 -7 -7 -7 ------------ Run | Scr Mat Min Exi Min Mat Fac Low Low Zio Dee Used RIF Installer . | . . . . . . . . . . . Robots Hacked . | . . . . . . . . . . . Non-combat . | . . . . . . . . . . . Combat . | . . . . . . . . . . . Robot Hacks Applied . | . . . . . . . . . . . Relay Couplers Released 1 | . . . . . 1 . . . . . Machine Destruction 1 | . . . . . 1 . . . . . Robots Rewired . | . . . . . . . . . . . Allies Hacked . | . . . . . . . . . . . Hacks Repelled . | . . . . . . . . . . . Allies | -11 -10 -10 -10 -9 -8 -7 -7 -7 -7 -7 -------- Run | Scr Mat Min Exi Min Mat Fac Low Low Zio Dee Total Allies 21 | . . . . 3 . 18 . . . . Largest Group 17 | . . . . 3 2 17 1 1 1 1 Highest-Rated Group 398 | . . . . 40 22 398 26 26 26 26 Highest-Rated Ally 31 | . . . . 16 14 31 26 26 26 26 Total Orders 11 | . . . . . . 6 2 2 . 1 STAY 1 | . . . . . . . . . . 1 GOTO 5 | . . . . . . 3 1 1 . . FOLLOW 5 | . . . . . . 3 1 1 . . Ally Attacks 153 | . . . . 25 15 113 . . . . Total Damage 1677 | . . . . 227 132 1318 . . . . Kills 18 | . . . . 5 3 10 . . . . Allies Corrupted 1 | . . . . . . 1 . . . . Allies Melted . | . . . . . . . . . . . Intel | -11 -10 -10 -10 -9 -8 -7 -7 -7 -7 -7 ------- Run | Scr Mat Min Exi Min Mat Fac Low Low Zio Dee Robot Analysis Total 4 | . 1 . . 1 1 . 1 . . . Derelict Logs Recovered 9 | . . 1 . 2 . . 2 2 2 . Drone Launches . | . . . . . . . . . . . Drone Recoveries . | . . . . . . . . . . . Exploration | -11 -10 -10 -10 -9 -8 -7 -7 -7 -7 -7 ------------- Run | Scr Mat Min Exi Min Mat Fac Low Low Zio Dee Turns Passed 6694 | 77 884 61 121 354 644 1381 2115 266 413 378 Spaces Moved 10646 | 43 801 84 292 557 1268 2448 3006 672 902 573 Core 230 | 43 187 . . . . . . . . . Treads 16 | . 16 . . . . . . . . . Legs . | . . . . . . . . . . . Wheels . | . . . . . . . . . . . Hover . | . . . . . . . . . . . Flight 10400 | . 598 84 292 557 1268 2448 3006 672 902 573 Fastest Speed 16 | 50 40 40 40 40 32 32 32 32 32 16 Average Speed 33 | 50 44 40 40 40 33 32 32 32 32 31 Slowest Speed 160 | 50 160 40 40 40 40 32 32 32 32 32 Overloaded Moves . | . . . . . . . . . . . Propulsion Burnouts . | . . . . . . . . . . . Robots Hopped 23 | . 6 . . . 5 7 4 1 . . Cave-ins Triggered . | . . . . . . . . . . . Exploration Rate (%) 65 | 4 90 24 62 95 86 33 98 80 83 70 Regions Visited 10 Branch Regions 7 Pre-discovered Areas 9 | . 2 1 1 . 1 1 1 . 2 . Known Exits Taken 6 | . 1 . . . 1 1 1 1 1 . Unknown Exits Taken 4 | 1 . 1 1 1 . . . . . . Scrap Searched 11 | . . . . 2 . . 5 2 2 . Spaces Dug 25 | . . 14 . . 11 . . . . . Terrain Destroyed 634 | . 90 35 . 40 131 266 16 31 . 25 Melee . | . . . . . . . . . . . Projectile 160 | . . . . 15 49 27 16 31 . 22 AOE 474 | . 90 35 . 25 82 239 . . . 3 Actions | -11 -10 -10 -10 -9 -8 -7 -7 -7 -7 -7 --------- Run | Scr Mat Min Exi Min Mat Fac Low Low Zio Dee Total 13395 | 84 1101 95 296 688 1480 3036 4150 721 1013 731 Wait 2011 | 31 135 . . 88 67 409 1090 30 102 59 Move 10590 | 42 788 83 291 556 1257 2433 2997 669 901 573 Hop 23 | . 6 . . . 5 7 4 1 . . Pick Up 20 | . 1 . 1 2 5 2 7 . 1 1 Fast Attach 39 | 6 7 . 1 3 10 4 4 . . 4 Attach 9 | . . . . 1 2 . 5 . . 1 Detach 11 | . 2 . . 2 4 1 1 . . 1 Swap 14 | . 4 2 . . 1 5 . . 2 . Drop 41 | . 6 . 3 3 8 5 11 . 1 4 Fire 474 | 5 117 10 . 15 94 141 24 15 . 53 Melee 10 | . . . . . . . 4 . 6 . Ram . | . . . . . . . . . . . Kick . | . . . . . . . . . . . Crush . | . . . . . . . . . . . Escape Stasis . | . . . . . . . . . . . Rewire . | . . . . . . . . . . . Trap . | . . . . . . . . . . . Miscellaneous 153 | . 35 . . 18 27 29 3 6 . 35 Route ------- -11/Scrapyard -10/Materials (discovered 4 exits: [*Mat x3] / *Min) -10/Mines (discovered 2 exits: [Mat] / *Exi) -10/Exiles -9/Mines (discovered 2 exits: *Mat x2) -8/Materials (discovered 3 exits: *Fac x3) -7/Factory (discovered 4 exits: *Fac x2 / *Low x2) -7/Lower Caves -7/Lower Caves (discovered 2 exits: *Fac / *Zio) -7/Zion (discovered 2 exits: *Dee / [*Pro]) -7/Deep Caves (discovered 1 exit: [*Pro]) History --------- Turn | Location | Event 1 | -11/Scrapyard | Upgraded with Utility slot (x1) 7 | -11/Scrapyard | Upgraded with Weapon slot (x1) 12 | -11/Scrapyard | Discovered new exit (range 15) 78 | -11/Scrapyard | Entered Materials 271 | -10/Materials | Discovered new exit (range 12) 312 | -10/Materials | Build established: Mutant 323 | -10/Materials | Identified exit to Mines 394 | -10/Materials | Reached level 2 401 | -10/Materials | Core integrity fell below 50% 489 | -10/Materials | Central database locked down 532 | -10/Materials | Discovered new exit (range 14) 701 | -10/Materials | Reached level 3 735 | -10/Materials | Discovered new exit (range 16) 812 | -10/Materials | Discovered new exit (range 16) 962 | -10/Materials | Entered Mines 963 | -10/Mines | Assembled infested the area 968 | -10/Mines | Assisted by a Guerilla fighting off Assembled 971 | -10/Mines | Reached level 4 1012 | -10/Mines | Discovered new exit (range 10) 1019 | -10/Mines | Discovered new exit (range 14) 1019 | -10/Mines | Deemed a non-threat by the Exiles lab entrance 1023 | -10/Mines | Entered Exiles 1033 | -10/Exiles | Met 8R-AWN 1040 | -10/Exiles | Met EX-HEX 1056 | -10/Exiles | Met EX-DEC 1059 | -10/Exiles | Learned location of Zion (-7) 1068 | -10/Exiles | Met EX-BIN 1074 | -10/Exiles | Aligned with FarCom system 1074 | -10/Exiles | Given EX-Vault access code 1084 | -10/Exiles | Opened EX-Vault 1086 | -10/Exiles | Upgraded with Weapon slot (x2) 1088 | -10/Exiles | Found XL Autogun Array 1098 | -10/Exiles | Warned to stay clear of 0b10 Research branches 1140 | -10/Exiles | Discovered new exit (range 14) 1144 | -10/Exiles | Left Exiles lab with XL Autogun Array 1144 | -10/Exiles | Entered Mines 1155 | -9/Mines | Reached level 5 1166 | -9/Mines | Assisted by bots powering up and referring to "LRC-V3" 1168 | -9/Mines | Destroyed YI-UF0 1171 | -9/Mines | Found Prototype Launcher 1219 | -9/Mines | Discovered new exit (range 9) 1226 | -9/Mines | Discovered new exit (range 16) 1258 | -9/Mines | Assisted by bots powering up and referring to "LRC-V3" 1330 | -9/Mines | Learned Materials garrison access intel 1389 | -9/Mines | Identified YI-UF0's Doublenader 1437 | -9/Mines | Build established: Scout 1444 | -9/Mines | Central database locked down 1450 | -9/Mines | Reached level 6 1498 | -9/Mines | Entered Materials 1498 | -8/Materials | Accompanied by 2 allies 1499 | -8/Materials | Loaded intel: 1 garrison access location 1500 | -8/Materials | Reached level 7 1500 | -8/Materials | Upgraded with Weapon slot (x1) 1553 | -8/Materials | Reached level 8 1586 | -8/Materials | Destroyed 11 combat bots 1648 | -8/Materials | Reached level 9 1652 | -8/Materials | Garrison activated, responded to threat 1674 | -8/Materials | Destroyed 9 combat bots 1712 | -8/Materials | Reached level 10 1778 | -8/Materials | Destroyed 7 combat bots 1778 | -8/Materials | Reached level 11 1779 | -8/Materials | Upgraded with Propulsion slot (x1) 1779 | -8/Materials | Upgraded with Utility slot (x2) 1791 | -8/Materials | Upgraded with Power slot (x1) 1811 | -8/Materials | Discovered new exit (range 9) 1812 | -8/Materials | Build established: Scavenger-Scout 1917 | -8/Materials | Discovered new exit (range 8) 1924 | -8/Materials | Identified exit to Factory 2071 | -8/Materials | Upgraded with Weapon slot (x1) 2092 | -8/Materials | Reached level 12 2129 | -8/Materials | Discovered exit to Factory (range 17) 2142 | -8/Materials | Entered Factory 2144 | -7/Factory | Reached level 13 2308 | -7/Factory | Discovered new exit (range 8) 2312 | -7/Factory | Identified exit to Factory 2363 | -7/Factory | Identified exit to Lower Caves 2367 | -7/Factory | Build established: Scout 2371 | -7/Factory | Reached level 14 2558 | -7/Factory | Reached level 15 2912 | -7/Factory | Allied Derelicts emerged from ambush trap array 2919 | -7/Factory | Discovered exit to Factory (range 24) 2942 | -7/Factory | First assault squad dispatched 3166 | -7/Factory | Reached level 16 3227 | -7/Factory | High security lockdown imminent 3307 | -7/Factory | High security lockdown engaged 3329 | -7/Factory | Reached level 17 3373 | -7/Factory | Destroyed 8 combat bots 3425 | -7/Factory | Destroyed 13 combat bots 3523 | -7/Factory | Entered Lower Caves 3523 | -7/Lower Caves | Accompanied by 1 ally 3534 | -7/Lower Caves | Learned Factory stockpile data 3642 | -7/Lower Caves | Learned location of Extension (-4) 3642 | -7/Lower Caves | Learned Armory terminal intel 3677 | -7/Lower Caves | Found Prototype Device 3691 | -7/Lower Caves | Discovered new exit (range 22) 3703 | -7/Lower Caves | Identified exit to Lower Caves 3710 | -7/Lower Caves | Identified Heart of Steel 3750 | -7/Lower Caves | Encountered a Warlord checkpoint 3819 | -7/Lower Caves | Reached level 18 3837 | -7/Lower Caves | Learned Armory stockpile data 3837 | -7/Lower Caves | Learned Extension emergency access door positions 3837 | -7/Lower Caves | Learned Extension trap positions 3837 | -7/Lower Caves | Learned Research trap positions 3837 | -7/Lower Caves | Learned 6 Upper Caves zone layouts 3837 | -7/Lower Caves | Learned 8 Factory zone layouts 3867 | -7/Lower Caves | Learned Factory machine intel 4164 | -7/Lower Caves | Build established: Hauler-Sprinter 5635 | -7/Lower Caves | Build established: Hauler-Scout 5638 | -7/Lower Caves | Entered another Lower Caves area 5638 | -7/Lower Caves | Accompanied by 1 ally 5649 | -7/Lower Caves | Discovered exit to Factory (range 21) 5673 | -7/Lower Caves | Encountered a Warlord checkpoint 5739 | -7/Lower Caves | Identified exit to Zion 5904 | -7/Lower Caves | Entered Zion 5904 | -7/Zion | Accompanied by 1 ally 5933 | -7/Zion | Discovered new exit (range 11) 5956 | -7/Zion | Learned Factory terminal intel 6006 | -7/Zion | Learned location of Data Miner (-6) 6231 | -7/Zion | Found Prototype Device 6234 | -7/Zion | Identified Mobile Refinery Mk. CCLXVII 6279 | -7/Zion | Discovered new exit (range 4) 6290 | -7/Zion | Saw the warning signs outside the Deep Caves entrance 6290 | -7/Zion | Identified exit to Deep Caves 6317 | -7/Zion | Entered Deep Caves 6317 | -7/Deep Caves | Accompanied by 1 ally 6384 | -7/Deep Caves | Attacked by Z-Imprinter 6386 | -7/Deep Caves | Destroyed Z-Imprinter 6394 | -7/Deep Caves | Found Prototype Device 6394 | -7/Deep Caves | Identified Zio. Metafield Generator 6438 | -7/Deep Caves | Z-Facility disabled 6579 | -7/Deep Caves | Discovered new exit (range 20) 6626 | -7/Deep Caves | Spotted as-84816 6683 | -7/Deep Caves | Core integrity fell below 50% 6693 | -7/Deep Caves | Core integrity fell below 20% 6695 | -7/Deep Caves | Destroyed by as-84816 with Assembled Focal Cannon Last Messages --------------- 06516_ Zio. Laser-S fried. 06516_ Prototype Hover Unit fried. 06516_ DE-96N(z) destroyed. 06527_ Used Protomatter to restore core integrity (+140) 06529_ Used Protomatter to restore part integrity (+39) 06532_ Acquired 70 matter. 06546_ as-34080 destroyed. 06551_ Acquired 8 matter. 06552_ Machine disabled. 06562_ as-89566 destroyed. 06567_ as-23236 destroyed. 06571_ Used Protomatter to restore core integrity (+33, depleted) 06576_ Acquired 8 matter. 06579_ EXIT=FOUND 06628_ as-84816: "DSI9AT1D G8OHIBQ29FWG 26R186 QD12WHW8W33 TDK1 81FTS" 06682_ Destroyed Prototype Protection. 06683_ as-84816 GOLEM Unit beginning Prototype Protection integration. 06695_ Overheating: System interference. 06695_ XL Autogun Array temporarily disabled. 06695_ Zio. Phaser-S temporarily disabled. Map ----- +----------------------------------------------------+ | ????# ?####?####?### ####?# ### | | ? ? ? ###?########### ###### ## | | ?? #?###?####?######## ###?# | | ???? ?# #####?######### ## ##### ### | | ? ????? ###################### ## #### ### | | ????? ?# ########################### ### ### | | ?? ## #?########################## ## ### | | ?? ??? ?########################### ## | | ?? ??? ######################### | | ?? ?? ############################ | | ??? ?? ############### ############ | | ?? ############# ########### | | ?? ?? ########### ########### # | | ?? ? ###?########## ########### #### | | ???? ### ########## # ## | | ### ########### # | | ?? # ######## # ####### | | ? ########### ####### ### | | ########## ############ | | ?? ######### ######## | | ? ############ ####### | | ? / ################ ### ##### | | ############;;####### # | | ############; ; <## # | | ! / ########### ## #### ## | | ** ########### @ ##### ###### #### | | ############ ;##### ##### #### | | ######## ##; ;#### ##### | | ###?### ## #### ###### #### | | * ####### ## ####### ####### #### | | * ! ##### #; ####### ###### #### | | * ! ##### ## ######## ##### ### | | * ##### ; ######## #### ### | | ###### #G ######## ### ### | | ####### ### ## | | ! #;; ###### #### # | | * ! ### ##### ### | | ###### ## | | ###### ## | | ####### ####### ### | | # # ######## ########### ### | | #### ## ## ########## ############# ##### | | ??### ## ######################################### | | ? ##### ######################################### | | ??#?############################################## | | | | | | | | | | | +----------------------------------------------------+ Best States ------------- Heat Dissipation 73 Energy Generation 27 Energy Capacity 480 Matter Stores 300 Matter Capacity 300 Sight Range 18 Robot Scan Range 16 Terrain Scan Range 24 Terrain Scan Density 710 Resistance: TH 10 Evasion (%) 63 Targeting Accuracy 8 Recoil Reduction 1 Matter Filtering 30 Kinecelleration 30 Salvage Targeting 1 Offensive Hacking 10 Defensive Hacking 5 Item Schematics ----------------- None Robot Schematics ------------------ P-60 Hacker | -7/Factory | Hacked Fabricated ------------ Nothing Alien Tech Used ----------------- None Achievements -------------- None Challenges ------------ None RPGLIKE | -11 -10 -10 -10 -9 -8 -7 -7 -7 -7 -7 --------- Run | Scr Mat Min Exi Min Mat Fac Low Low Zio Dee Levels Raised 17 | . 2 1 . 2 6 5 1 . . . XP Earned 29131 | 3000 3939 725 350 2751 8977 8341 454 263 82 249 XP Spent 28230 | 2600 1400 . 3400 2520 8070 3450 5390 . . 1400 Upgrades 61 | 12 4 . 5 14 10 4 9 . . 3 Power Slot 1 | . . . . . 1 . . . . . Propulsion Slot 1 | . . . . . 1 . . . . . Utility Slot 3 | 1 . . . . 2 . . . . . Weapon Slot 5 | 1 . . 2 . 2 . . . . . Heat Dissipation 8 | . . . . 4 . . 4 . . . Mass Support 7 | 1 2 . 3 . . 1 . . . . Inventory Capacity 7 | 1 . . . 1 2 1 2 . . . Sensor Range 8 | . . . . 8 . . . . . . Terrain Scan Density 7 | 5 . . . . 2 . . . . . Ranged Accuracy 6 | . 2 . . 1 . 2 . . . 1 Hack Attack % 2 | 2 . . . . . . . . . . Hack Defense % 1 | 1 . . . . . . . . . . TH Resistance % 2 | . . . . . . . . . . 2 KI Damage % 3 | . . . . . . . 3 . . . Protomatter Created 3522 | . 329 45 . 202 783 1402 207 86 . 468 Integrity Restored 2940 | . 758 . . 363 471 507 48 98 . 695 Core 2342 | . 662 . . 261 345 410 42 76 . 546 Parts 598 | . 96 . . 102 126 97 6 22 . 149 Protomatter Decayed 2519 | . 68 94 . 21 533 1284 234 50 . 235 Game ------ Seed VortexTeslaLog Manual? 0 Play Time 01:15:58 Cumulative 436.2 hours Start 2019.12.24 @ 00:22:04 End 2019.12.24 @ 01:51:06 Sessions 3 Manual Loads 0 Difficulty Rogue Special Mode Winter2019/RPGLIKE Game No. 333 Rogue 329 Adventurer 4 Explorer 0 Win Type - Total 40 Types 32/3/1/2/2/0/0 Lore% 93 Gallery% 94 Achievement% 91 Wizard Run 0 Options --------- ASCII 0 Keyboard 0 Movement Vi Keybinds 0 Fullscreen 0 Font 16/Terminus Map View 76x50 Tactical HUD 1 Map Filters NONE Filters NONE Steam 1 RUN: faa02e99-b838-4449-959a-2540242ee8d5